{"text_format":"3","workbook":"xlsx","n_sheets":32,"sheets":["Grant Info & Instructions","Summary Results","Facility 1","Facility 2","Facility 3","Facility 4","Facility 5","Facility 6","Facility 7","Facility 8","Facility 9","Facility 10","Facility 11","Facility 12","Facility 13","Facility 14","Facility 15","Facility 16 ","Facility 17","Facility 18","Facility 19","Facility 20","Facility 21","Facility 22","Facility 23","Facility 24","Facility 25","Facility 26","Facility 27","Facility 28","Facility 29","Facility 30"],"not_rendered":{"external_links":1,"defined_names":33},"read":"whole","date_system":"1900"}

{"sheet":"Grant Info & Instructions","index":0,"n_rows":19,"n_cols":3,"rows_kept":19,"merged":[[0,0,0,1],[12,1,12,3],[13,0,13,3],[14,0,14,3],[15,0,15,3],[16,0,16,3],[17,0,17,3],[18,0,18,3]]}
["P2 Grant Information"]
["Grant Recipient: "]
["Grant Number: "]
["Grant Period (FY-FY):"]
["Grantee Contact Name:"]
["Grantee Contact Phone Number:"]
["Grantee Contact E-Mail:"]
["EPA Region:",null,"drop down list"]
["EPA Technical Contact Name:"]
["EPA Technical Contact Phone Number:"]
["EPA Technical Contact Email:"]
[]
["Instructions:"]
["•  To navigate to the different pages in this spreadsheet, click on the tabs at the bottom of this spreadsheet."]
["•  Grant Information Tab - Enter the Grantee information, as indicated.  "]
["•  Summary Results Tab - Automatically calculates the total outcomes achieved from the outcomes entered in each Facility Tab.  Please enter the Date Range for the report in row 3 (Month Year - Month Year)."]
["•  Facility Tabs (Facility 1, Facility 2…) - Enter Information for a Business/Facility provided technical assistance, as indicated.  Each Business/Facility provided technical assistance should be entered in a separate Facility Tab.   NOTE that each facility tab has three tables for data entry, 1) Facility information, 2) P2 Actions and Outcomes, and 3) P2 Actions Implemented at a Business/Facility Prior to Technical Assistance (optional).  Please scroll down the spreadsheet to see all three tables."]
["•   Where P2 Technical Assistance is Broadly Provided (e.g., P2 training courses, outreach materials, tool development, roundtables, green certification or leadership programs), specific P2 recommendations to a business/facility are not required.  However, EPA expects good faith efforts to follow-up with business/facilities within one-year of when the technical assistance was provided, or by the end of the grant period to report information described in the P2 Actions and Outcomes table in the Facility Tabs (note: green certification and leadership programs are expected to report this information).  Therefore, please change the column header in column A of the P2 Actions and Outcomes Table in the Facility Tabs from \"Recommended P2 Actions\" to \"Implemented P2 Actions.\"   Additionally, it is not necessary to report information in the \"If Not Implemented\" section (columns J&K).  "]
["NOTE:  Some cells allow data entry through a drop down list only. To enter data in those cells, click on the small arrow that appears on the right when those cells are clicked. "]

{"sheet":"Summary Results","index":1,"n_rows":9,"n_cols":8,"rows_kept":9,"merged":[[1,0,1,1],[1,2,1,5],[2,0,2,1],[2,2,2,4],[7,0,7,7],[8,0,8,7]]}
["Summary of Results from Implemented P2 Actions"]
["Grantee Name:",null,{"$f":"'Grant Info & Instructions'!B2","v":0}]
["Date Range for this Report*:",null,"Month/Year - Month/Year"]
["One-time Cost to Implement ($)","Savings from P2 Action ($)","Hazardous Material input (lbs)","Hazardous waste (lbs)","Air emissions (lbs)","Water pollution (lbs)","MTCO2e emissions (tons)","Water use (gal.)"]
[{"$f":"SUM('Facility 1'!B49+'Facility 2'!B49+'Facility 3'!B49+'Facility 4'!B49+'Facility 5'!B49+'Facility 6'!B49+'Facility 7'!B49+'Facility 8'!B49+'Facility 9'!B49+'Facility 10'!B49+'Facility 11'!B49+'Facility 12'!B49+'Facility 13'!B49+'Facility 14'!B49+'Facility 15'!B49+'Facility 16 '!B49+'Facility 17'!B49+'Facility 18'!B49+'Facility 19'!B49+'Facility 20'!B49+'Facility 21'!B49+'Facility 22'!B49+'Facility 23'!B49+'Facility 24'!B49+'Facility 25'!B49+'Facility 26'!B49+'Facility 27'!B49+'Facility 28'!B49+'Facility 29'!B49+'Facility 30'!B49)","v":{"v":0,"d":"$0"}},{"$f":"SUM('Facility 1'!C49+'Facility 2'!C49+'Facility 3'!C49+'Facility 4'!C49+'Facility 5'!C49+'Facility 6'!C49+'Facility 7'!C49+'Facility 8'!C49+'Facility 9'!C49+'Facility 10'!C49+'Facility 11'!C49+'Facility 12'!C49+'Facility 13'!C49+'Facility 14'!C49+'Facility 15'!C49+'Facility 16 '!C49+'Facility 17'!C49+'Facility 18'!C49+'Facility 19'!C49+'Facility 20'!C49+'Facility 21'!C49+'Facility 22'!C49+'Facility 23'!C49+'Facility 24'!C49+'Facility 25'!C49+'Facility 26'!C49+'Facility 27'!C49+'Facility 28'!C49+'Facility 29'!C49+'Facility 30'!C49)","v":{"v":0,"d":"$0"}},{"$f":"SUM('Facility 1'!D49+'Facility 2'!D49+'Facility 3'!D49+'Facility 4'!D49+'Facility 5'!D49+'Facility 6'!D49+'Facility 7'!D49+'Facility 8'!D49+'Facility 9'!D49+'Facility 10'!D49+'Facility 11'!D49+'Facility 12'!D49+'Facility 13'!D49+'Facility 14'!D49+'Facility 15'!D49+'Facility 16 '!D49+'Facility 17'!D49+'Facility 18'!D49+'Facility 19'!D49+'Facility 20'!D49+'Facility 21'!D49+'Facility 22'!D49+'Facility 23'!D49+'Facility 24'!D49+'Facility 25'!D49+'Facility 26'!D49+'Facility 27'!D49+'Facility 28'!D49+'Facility 29'!D49+'Facility 30'!D49)","v":0},{"$f":"SUM('Facility 1'!E49+'Facility 2'!E49+'Facility 3'!E49+'Facility 4'!E49+'Facility 5'!E49+'Facility 6'!E49+'Facility 7'!E49+'Facility 8'!E49+'Facility 9'!E49+'Facility 10'!E49+'Facility 11'!E49+'Facility 12'!E49+'Facility 13'!E49+'Facility 14'!E49+'Facility 15'!E49+'Facility 16 '!E49+'Facility 17'!E49+'Facility 18'!E49+'Facility 19'!E49+'Facility 20'!E49+'Facility 21'!E49+'Facility 22'!E49+'Facility 23'!E49+'Facility 24'!E49+'Facility 25'!E49+'Facility 26'!E49+'Facility 27'!E49+'Facility 28'!E49+'Facility 29'!E49+'Facility 30'!E49)","v":0},{"$f":"SUM('Facility 1'!F49+'Facility 2'!F49+'Facility 3'!F49+'Facility 4'!F49+'Facility 5'!F49+'Facility 6'!F49+'Facility 7'!F49+'Facility 8'!F49+'Facility 9'!F49+'Facility 10'!F49+'Facility 11'!F49+'Facility 12'!F49+'Facility 13'!F49+'Facility 14'!F49+'Facility 15'!F49+'Facility 16 '!F49+'Facility 17'!F49+'Facility 18'!F49+'Facility 19'!F49+'Facility 20'!F49+'Facility 21'!F49+'Facility 22'!F49+'Facility 23'!F49+'Facility 24'!F49+'Facility 25'!F49+'Facility 26'!F49+'Facility 27'!F49+'Facility 28'!F49+'Facility 29'!F49+'Facility 30'!F49)","v":0},{"$f":"SUM('Facility 1'!G49+'Facility 2'!G49+'Facility 3'!G49+'Facility 4'!G49+'Facility 5'!G49+'Facility 6'!G49+'Facility 7'!G49+'Facility 8'!G49+'Facility 9'!G49+'Facility 10'!G49+'Facility 11'!G49+'Facility 12'!G49+'Facility 13'!G49+'Facility 14'!G49+'Facility 15'!G49+'Facility 16 '!G49+'Facility 17'!G49+'Facility 18'!G49+'Facility 19'!G49+'Facility 20'!G49+'Facility 21'!G49+'Facility 22'!G49+'Facility 23'!G49+'Facility 24'!G49+'Facility 25'!G49+'Facility 26'!G49+'Facility 27'!G49+'Facility 28'!G49+'Facility 29'!G49+'Facility 30'!G49)","v":0},{"$f":"SUM('Facility 1'!H49+'Facility 2'!H49+'Facility 3'!H49+'Facility 4'!H49+'Facility 5'!H49+'Facility 6'!H49+'Facility 7'!H49+'Facility 8'!H49+'Facility 9'!H49+'Facility 10'!H49+'Facility 11'!H49+'Facility 12'!H49+'Facility 13'!H49+'Facility 14'!H49+'Facility 15'!H49+'Facility 16 '!H49+'Facility 17'!H49+'Facility 18'!H49+'Facility 19'!H49+'Facility 20'!H49+'Facility 21'!H49+'Facility 22'!H49+'Facility 23'!H49+'Facility 24'!H49+'Facility 25'!H49+'Facility 26'!H49+'Facility 27'!H49+'Facility 28'!H49+'Facility 29'!H49+'Facility 30'!H49)","v":0},{"$f":"SUM('Facility 1'!I49+'Facility 2'!I49+'Facility 3'!I49+'Facility 4'!I49+'Facility 5'!I49+'Facility 6'!I49+'Facility 7'!I49+'Facility 8'!I49+'Facility 9'!I49+'Facility 10'!I49+'Facility 11'!I49+'Facility 12'!I49+'Facility 13'!I49+'Facility 14'!I49+'Facility 15'!I49+'Facility 16 '!I49+'Facility 17'!I49+'Facility 18'!I49+'Facility 19'!I49+'Facility 20'!I49+'Facility 21'!I49+'Facility 22'!I49+'Facility 23'!I49+'Facility 24'!I49+'Facility 25'!I49+'Facility 26'!I49+'Facility 27'!I49+'Facility 28'!I49+'Facility 29'!I49+'Facility 30'!I49)","v":0}]
[]
[]
["* Please enter the date range for this report (e.g., October 2018 - September 2019)"]
["Note: Summary results are calculated automatically by adding the total results on each Facility Tab"]

{"sheet":"Facility 1","index":2,"n_rows":55,"n_cols":12,"rows_kept":55,"merged":[[1,1,1,10],[4,1,4,10],[5,1,5,10],[6,1,6,10],[7,1,7,10],[8,1,8,10],[9,1,9,10],[10,1,10,10],[11,1,11,10],[12,1,12,10],[13,1,13,10],[17,0,19,0],[17,1,17,8],[17,9,17,10],[18,1,18,2],[18,3,18,8],[18,9,18,10],[51,0,51,8],[52,0,56,0],[52,1,52,8],[53,1,53,2],[53,3,53,8],[54,1,56,1],[54,2,56,2],[54,3,56,3],[54,4,56,4],[54,5,56,5],[54,6,56,6],[54,7,56,7],[54,8,56,8]]}
["Please scroll down to see all three tables"]
["Grantee:  ",{"$f":"'Grant Info & Instructions'!B2","v":0}]
[]
["Facility Information"]
["Facility Name (optional):"]
["EPA Facility Identifier (optional):"]
["Facility Contact (optional):"]
["Facility NAICS Code (6 Digits):"]
["Facility City (optional):"]
["Facility State:"]
["EPA Region where the Facility is located:",{"$nulls":10},"Drop down list"]
["NEAs for the Facility addressed:",{"$nulls":10},"Drop down list"]
["Date P2 recommendations were provided to Facility:"]
["Date(s) of follow-up:"]
[]
[]
["P2 Actions and Outcomes"]
["Recommended P2 Actions","If Implemented:",{"$nulls":7},"If Not Implemented:"]
[null,"$",null,"Annual Reductions"]
[null,"One-time Cost to Implement ($)","Annual Savings from P2 Action ($)","Hazardous Material input (lbs)","Hazardous waste (lbs)","Air emissions (lbs)","Water pollution (lbs)","MTCO2e emissions (tons)","Water use (gal.)","Barrier to Implement","Plans to Implement within 5 years?     (pick Y/N)"]
{"$rows_empty":28}
["TOTAL",{"$f":"SUM(B21:B48)","v":{"v":0,"d":"$0"}},{"$f":"SUM(C21:C48)","v":{"v":0,"d":"$0"}},0,0,0,0,0,0]
[]
[]
["P2 Actions Implemented at a Business/Facility Prior to Technical Assistance (optional)"]
["P2 Actions Previously Implemented","If Available:"]
[null,"$",null,"Annual Reductions"]
[null,"One-time Cost to Implement ($)","Annual Savings from P2 Action ($)","Hazardous Materials used (lbs)","Hazardous waste (lbs)","Air emissions (lbs)","Water pollution (lbs)","MTCO2e emissions (tons)","Water use (gal.)"]

{"sheet":"Facility 2","index":3,"n_rows":55,"n_cols":12,"rows_kept":55,"merged":[[1,1,1,10],[4,1,4,10],[5,1,5,10],[6,1,6,10],[7,1,7,10],[8,1,8,10],[9,1,9,10],[10,1,10,10],[11,1,11,10],[12,1,12,10],[13,1,13,10],[17,0,19,0],[17,1,17,8],[17,9,17,10],[18,1,18,2],[18,3,18,8],[18,9,18,10],[51,0,51,8],[52,0,56,0],[52,1,52,8],[53,1,53,2],[53,3,53,8],[54,1,56,1],[54,2,56,2],[54,3,56,3],[54,4,56,4],[54,5,56,5],[54,6,56,6],[54,7,56,7],[54,8,56,8]]}
["Please scroll down to see all three tables"]
["Grantee:  ",{"$f":"'Grant Info & Instructions'!B2","v":0}]
[]
["Facility Information"]
["Facility Name (optional):"]
["EPA Facility Identifier (optional):"]
["Facility Contact (optional):"]
["Facility NAICS Code (6 Digits):"]
["Facility City (optional):"]
["Facility State:"]
["EPA Region where the Facility is located:",{"$nulls":10},"Drop down list"]
["NEAs for the Facility addressed:",{"$nulls":10},"Drop down list"]
["Date P2 recommendations were provided to Facility:"]
["Date(s) of follow-up:"]
[]
[]
["P2 Actions and Outcomes"]
["Recommended P2 Actions","If Implemented:",{"$nulls":7},"If Not Implemented:"]
[null,"$",null,"Annual Reductions"]
[null,"One-time Cost to Implement ($)","Annual Savings from P2 Action ($)","Hazardous Material input (lbs)","Hazardous waste (lbs)","Air emissions (lbs)","Water pollution (lbs)","MTCO2e emissions (tons)","Water use (gal.)","Barrier to Implement","Plans to Implement within 5 years?     (pick Y/N)"]
{"$rows_empty":28}
["TOTAL",{"$f":"SUM(B21:B48)","v":{"v":0,"d":"$0"}},{"$f":"SUM(C21:C48)","v":{"v":0,"d":"$0"}},0,0,0,0,0,0]
[]
[]
["P2 Actions Implemented at a Business/Facility Prior to Technical Assistance (optional)"]
["P2 Actions Previously Implemented","If Available:"]
[null,"$",null,"Annual Reductions"]
[null,"One-time Cost to Implement ($)","Annual Savings from P2 Action ($)","Hazardous Materials used (lbs)","Hazardous waste (lbs)","Air emissions (lbs)","Water pollution (lbs)","MTCO2e emissions (tons)","Water use (gal.)"]

{"sheet":"Facility 3","index":4,"n_rows":55,"n_cols":12,"rows_kept":55,"merged":[[1,1,1,10],[4,1,4,10],[5,1,5,10],[6,1,6,10],[7,1,7,10],[8,1,8,10],[9,1,9,10],[10,1,10,10],[11,1,11,10],[12,1,12,10],[13,1,13,10],[17,0,19,0],[17,1,17,8],[17,9,17,10],[18,1,18,2],[18,3,18,8],[18,9,18,10],[51,0,51,8],[52,0,56,0],[52,1,52,8],[53,1,53,2],[53,3,53,8],[54,1,56,1],[54,2,56,2],[54,3,56,3],[54,4,56,4],[54,5,56,5],[54,6,56,6],[54,7,56,7],[54,8,56,8]]}
["Please scroll down to see all three tables"]
["Grantee:  ",{"$f":"'Grant Info & Instructions'!B2","v":0}]
[]
["Facility Information"]
["Facility Name (optional):"]
["EPA Facility Identifier (optional):"]
["Facility Contact (optional):"]
["Facility NAICS Code (6 Digits):"]
["Facility City (optional):"]
["Facility State:"]
["EPA Region where the Facility is located:",{"$nulls":10},"Drop down list"]
["NEAs for the Facility addressed:",{"$nulls":10},"Drop down list"]
["Date P2 recommendations were provided to Facility:"]
["Date(s) of follow-up:"]
[]
[]
["P2 Actions and Outcomes"]
["Recommended P2 Actions","If Implemented:",{"$nulls":7},"If Not Implemented:"]
[null,"$",null,"Annual Reductions"]
[null,"One-time Cost to Implement ($)","Annual Savings from P2 Action ($)","Hazardous Material input (lbs)","Hazardous waste (lbs)","Air emissions (lbs)","Water pollution (lbs)","MTCO2e emissions (tons)","Water use (gal.)","Barrier to Implement","Plans to Implement within 5 years?     (pick Y/N)"]
{"$rows_empty":28}
["TOTAL",{"$f":"SUM(B21:B48)","v":{"v":0,"d":"$0"}},{"$f":"SUM(C21:C48)","v":{"v":0,"d":"$0"}},0,0,0,0,0,0]
[]
[]
["P2 Actions Implemented at a Business/Facility Prior to Technical Assistance (optional)"]
["P2 Actions Previously Implemented","If Available:"]
[null,"$",null,"Annual Reductions"]
[null,"One-time Cost to Implement ($)","Annual Savings from P2 Action ($)","Hazardous Materials used (lbs)","Hazardous waste (lbs)","Air emissions (lbs)","Water pollution (lbs)","MTCO2e emissions (tons)","Water use (gal.)"]

{"sheet":"Facility 4","index":5,"n_rows":55,"n_cols":12,"rows_kept":55,"merged":[[1,1,1,10],[4,1,4,10],[5,1,5,10],[6,1,6,10],[7,1,7,10],[8,1,8,10],[9,1,9,10],[10,1,10,10],[11,1,11,10],[12,1,12,10],[13,1,13,10],[17,0,19,0],[17,1,17,8],[17,9,17,10],[18,1,18,2],[18,3,18,8],[18,9,18,10],[51,0,51,8],[52,0,56,0],[52,1,52,8],[53,1,53,2],[53,3,53,8],[54,1,56,1],[54,2,56,2],[54,3,56,3],[54,4,56,4],[54,5,56,5],[54,6,56,6],[54,7,56,7],[54,8,56,8]]}
["Please scroll down to see all three tables"]
["Grantee:  ",{"$f":"'Grant Info & Instructions'!B2","v":0}]
[]
["Facility Information"]
["Facility Name (optional):"]
["EPA Facility Identifier (optional):"]
["Facility Contact (optional):"]
["Facility NAICS Code (6 Digits):"]
["Facility City (optional):"]
["Facility State:"]
["EPA Region where the Facility is located:",{"$nulls":10},"Drop down list"]
["NEAs for the Facility addressed:",{"$nulls":10},"Drop down list"]
["Date P2 recommendations were provided to Facility:"]
["Date(s) of follow-up:"]
[]
[]
["P2 Actions and Outcomes"]
["Recommended P2 Actions","If Implemented:",{"$nulls":7},"If Not Implemented:"]
[null,"$",null,"Annual Reductions"]
[null,"One-time Cost to Implement ($)","Annual Savings from P2 Action ($)","Hazardous Material input (lbs)","Hazardous waste (lbs)","Air emissions (lbs)","Water pollution (lbs)","MTCO2e emissions (tons)","Water use (gal.)","Barrier to Implement","Plans to Implement within 5 years?     (pick Y/N)"]
{"$rows_empty":28}
["TOTAL",{"$f":"SUM(B21:B48)","v":{"v":0,"d":"$0"}},{"$f":"SUM(C21:C48)","v":{"v":0,"d":"$0"}},0,0,0,0,0,0]
[]
[]
["P2 Actions Implemented at a Business/Facility Prior to Technical Assistance (optional)"]
["P2 Actions Previously Implemented","If Available:"]
[null,"$",null,"Annual Reductions"]
[null,"One-time Cost to Implement ($)","Annual Savings from P2 Action ($)","Hazardous Materials used (lbs)","Hazardous waste (lbs)","Air emissions (lbs)","Water pollution (lbs)","MTCO2e emissions (tons)","Water use (gal.)"]

{"sheet":"Facility 5","index":6,"n_rows":55,"n_cols":12,"rows_kept":55,"merged":[[1,1,1,10],[4,1,4,10],[5,1,5,10],[6,1,6,10],[7,1,7,10],[8,1,8,10],[9,1,9,10],[10,1,10,10],[11,1,11,10],[12,1,12,10],[13,1,13,10],[17,0,19,0],[17,1,17,8],[17,9,17,10],[18,1,18,2],[18,3,18,8],[18,9,18,10],[51,0,51,8],[52,0,56,0],[52,1,52,8],[53,1,53,2],[53,3,53,8],[54,1,56,1],[54,2,56,2],[54,3,56,3],[54,4,56,4],[54,5,56,5],[54,6,56,6],[54,7,56,7],[54,8,56,8]]}
["Please scroll down to see all three tables"]
["Grantee:  ",{"$f":"'Grant Info & Instructions'!B2","v":0}]
[]
["Facility Information"]
["Facility Name (optional):"]
["EPA Facility Identifier (optional):"]
["Facility Contact (optional):"]
["Facility NAICS Code (6 Digits):"]
["Facility City (optional):"]
["Facility State:"]
["EPA Region where the Facility is located:",{"$nulls":10},"Drop down list"]
["NEAs for the Facility addressed:",{"$nulls":10},"Drop down list"]
["Date P2 recommendations were provided to Facility:"]
["Date(s) of follow-up:"]
[]
[]
["P2 Actions and Outcomes"]
["Recommended P2 Actions","If Implemented:",{"$nulls":7},"If Not Implemented:"]
[null,"$",null,"Annual Reductions"]
[null,"One-time Cost to Implement ($)","Annual Savings from P2 Action ($)","Hazardous Material input (lbs)","Hazardous waste (lbs)","Air emissions (lbs)","Water pollution (lbs)","MTCO2e emissions (tons)","Water use (gal.)","Barrier to Implement","Plans to Implement within 5 years?     (pick Y/N)"]
{"$rows_empty":28}
["TOTAL",{"$f":"SUM(B21:B48)","v":{"v":0,"d":"$0"}},{"$f":"SUM(C21:C48)","v":{"v":0,"d":"$0"}},0,0,0,0,0,0]
[]
[]
["P2 Actions Implemented at a Business/Facility Prior to Technical Assistance (optional)"]
["P2 Actions Previously Implemented","If Available:"]
[null,"$",null,"Annual Reductions"]
[null,"One-time Cost to Implement ($)","Annual Savings from P2 Action ($)","Hazardous Materials used (lbs)","Hazardous waste (lbs)","Air emissions (lbs)","Water pollution (lbs)","MTCO2e emissions (tons)","Water use (gal.)"]

{"sheet":"Facility 6","index":7,"n_rows":55,"n_cols":12,"rows_kept":55,"merged":[[1,1,1,10],[4,1,4,10],[5,1,5,10],[6,1,6,10],[7,1,7,10],[8,1,8,10],[9,1,9,10],[10,1,10,10],[11,1,11,10],[12,1,12,10],[13,1,13,10],[17,0,19,0],[17,1,17,8],[17,9,17,10],[18,1,18,2],[18,3,18,8],[18,9,18,10],[51,0,51,8],[52,0,56,0],[52,1,52,8],[53,1,53,2],[53,3,53,8],[54,1,56,1],[54,2,56,2],[54,3,56,3],[54,4,56,4],[54,5,56,5],[54,6,56,6],[54,7,56,7],[54,8,56,8]]}
["Please scroll down to see all three tables"]
["Grantee:  ",{"$f":"'Grant Info & Instructions'!B2","v":0}]
[]
["Facility Information"]
["Facility Name (optional):"]
["EPA Facility Identifier (optional):"]
["Facility Contact (optional):"]
["Facility NAICS Code (6 Digits):"]
["Facility City (optional):"]
["Facility State:"]
["EPA Region where the Facility is located:",{"$nulls":10},"Drop down list"]
["NEAs for the Facility addressed:",{"$nulls":10},"Drop down list"]
["Date P2 recommendations were provided to Facility:"]
["Date(s) of follow-up:"]
[]
[]
["P2 Actions and Outcomes"]
["Recommended P2 Actions","If Implemented:",{"$nulls":7},"If Not Implemented:"]
[null,"$",null,"Annual Reductions"]
[null,"One-time Cost to Implement ($)","Annual Savings from P2 Action ($)","Hazardous Material input (lbs)","Hazardous waste (lbs)","Air emissions (lbs)","Water pollution (lbs)","MTCO2e emissions (tons)","Water use (gal.)","Barrier to Implement","Plans to Implement within 5 years?     (pick Y/N)"]
{"$rows_empty":28}
["TOTAL",{"$f":"SUM(B21:B48)","v":{"v":0,"d":"$0"}},{"$f":"SUM(C21:C48)","v":{"v":0,"d":"$0"}},0,0,0,0,0,0]
[]
[]
["P2 Actions Implemented at a Business/Facility Prior to Technical Assistance (optional)"]
["P2 Actions Previously Implemented","If Available:"]
[null,"$",null,"Annual Reductions"]
[null,"One-time Cost to Implement ($)","Annual Savings from P2 Action ($)","Hazardous Materials used (lbs)","Hazardous waste (lbs)","Air emissions (lbs)","Water pollution (lbs)","MTCO2e emissions (tons)","Water use (gal.)"]

{"sheet":"Facility 7","index":8,"n_rows":55,"n_cols":12,"rows_kept":55,"merged":[[1,1,1,10],[4,1,4,10],[5,1,5,10],[6,1,6,10],[7,1,7,10],[8,1,8,10],[9,1,9,10],[10,1,10,10],[11,1,11,10],[12,1,12,10],[13,1,13,10],[17,0,19,0],[17,1,17,8],[17,9,17,10],[18,1,18,2],[18,3,18,8],[18,9,18,10],[51,0,51,8],[52,0,56,0],[52,1,52,8],[53,1,53,2],[53,3,53,8],[54,1,56,1],[54,2,56,2],[54,3,56,3],[54,4,56,4],[54,5,56,5],[54,6,56,6],[54,7,56,7],[54,8,56,8]]}
["Please scroll down to see all three tables"]
["Grantee:  ",{"$f":"'Grant Info & Instructions'!B2","v":0}]
[]
["Facility Information"]
["Facility Name (optional):"]
["EPA Facility Identifier (optional):"]
["Facility Contact (optional):"]
["Facility NAICS Code (6 Digits):"]
["Facility City (optional):"]
["Facility State:"]
["EPA Region where the Facility is located:",{"$nulls":10},"Drop down list"]
["NEAs for the Facility addressed:",{"$nulls":10},"Drop down list"]
["Date P2 recommendations were provided to Facility:"]
["Date(s) of follow-up:"]
[]
[]
["P2 Actions and Outcomes"]
["Recommended P2 Actions","If Implemented:",{"$nulls":7},"If Not Implemented:"]
[null,"$",null,"Annual Reductions"]
[null,"One-time Cost to Implement ($)","Annual Savings from P2 Action ($)","Hazardous Material input (lbs)","Hazardous waste (lbs)","Air emissions (lbs)","Water pollution (lbs)","MTCO2e emissions (tons)","Water use (gal.)","Barrier to Implement","Plans to Implement within 5 years?     (pick Y/N)"]
{"$rows_empty":28}
["TOTAL",{"$f":"SUM(B21:B48)","v":{"v":0,"d":"$0"}},{"$f":"SUM(C21:C48)","v":{"v":0,"d":"$0"}},0,0,0,0,0,0]
[]
[]
["P2 Actions Implemented at a Business/Facility Prior to Technical Assistance (optional)"]
["P2 Actions Previously Implemented","If Available:"]
[null,"$",null,"Annual Reductions"]
[null,"One-time Cost to Implement ($)","Annual Savings from P2 Action ($)","Hazardous Materials used (lbs)","Hazardous waste (lbs)","Air emissions (lbs)","Water pollution (lbs)","MTCO2e emissions (tons)","Water use (gal.)"]

{"sheet":"Facility 8","index":9,"n_rows":55,"n_cols":12,"rows_kept":55,"merged":[[1,1,1,10],[4,1,4,10],[5,1,5,10],[6,1,6,10],[7,1,7,10],[8,1,8,10],[9,1,9,10],[10,1,10,10],[11,1,11,10],[12,1,12,10],[13,1,13,10],[17,0,19,0],[17,1,17,8],[17,9,17,10],[18,1,18,2],[18,3,18,8],[18,9,18,10],[51,0,51,8],[52,0,56,0],[52,1,52,8],[53,1,53,2],[53,3,53,8],[54,1,56,1],[54,2,56,2],[54,3,56,3],[54,4,56,4],[54,5,56,5],[54,6,56,6],[54,7,56,7],[54,8,56,8]]}
["Please scroll down to see all three tables"]
["Grantee:  ",{"$f":"'Grant Info & Instructions'!B2","v":0}]
[]
["Facility Information"]
["Facility Name (optional):"]
["EPA Facility Identifier (optional):"]
["Facility Contact (optional):"]
["Facility NAICS Code (6 Digits):"]
["Facility City (optional):"]
["Facility State:"]
["EPA Region where the Facility is located:",{"$nulls":10},"Drop down list"]
["NEAs for the Facility addressed:",{"$nulls":10},"Drop down list"]
["Date P2 recommendations were provided to Facility:"]
["Date(s) of follow-up:"]
[]
[]
["P2 Actions and Outcomes"]
["Recommended P2 Actions","If Implemented:",{"$nulls":7},"If Not Implemented:"]
[null,"$",null,"Annual Reductions"]
[null,"One-time Cost to Implement ($)","Annual Savings from P2 Action ($)","Hazardous Material input (lbs)","Hazardous waste (lbs)","Air emissions (lbs)","Water pollution (lbs)","MTCO2e emissions (tons)","Water use (gal.)","Barrier to Implement","Plans to Implement within 5 years?     (pick Y/N)"]
{"$rows_empty":28}
["TOTAL",{"$f":"SUM(B21:B48)","v":{"v":0,"d":"$0"}},{"$f":"SUM(C21:C48)","v":{"v":0,"d":"$0"}},0,0,0,0,0,0]
[]
[]
["P2 Actions Implemented at a Business/Facility Prior to Technical Assistance (optional)"]
["P2 Actions Previously Implemented","If Available:"]
[null,"$",null,"Annual Reductions"]
[null,"One-time Cost to Implement ($)","Annual Savings from P2 Action ($)","Hazardous Materials used (lbs)","Hazardous waste (lbs)","Air emissions (lbs)","Water pollution (lbs)","MTCO2e emissions (tons)","Water use (gal.)"]

{"sheet":"Facility 9","index":10,"n_rows":55,"n_cols":12,"rows_kept":55,"merged":[[1,1,1,10],[4,1,4,10],[5,1,5,10],[6,1,6,10],[7,1,7,10],[8,1,8,10],[9,1,9,10],[10,1,10,10],[11,1,11,10],[12,1,12,10],[13,1,13,10],[17,0,19,0],[17,1,17,8],[17,9,17,10],[18,1,18,2],[18,3,18,8],[18,9,18,10],[51,0,51,8],[52,0,56,0],[52,1,52,8],[53,1,53,2],[53,3,53,8],[54,1,56,1],[54,2,56,2],[54,3,56,3],[54,4,56,4],[54,5,56,5],[54,6,56,6],[54,7,56,7],[54,8,56,8]]}
["Please scroll down to see all three tables"]
["Grantee:  ",{"$f":"'Grant Info & Instructions'!B2","v":0}]
[]
["Facility Information"]
["Facility Name (optional):"]
["EPA Facility Identifier (optional):"]
["Facility Contact (optional):"]
["Facility NAICS Code (6 Digits):"]
["Facility City (optional):"]
["Facility State:"]
["EPA Region where the Facility is located:",{"$nulls":10},"Drop down list"]
["NEAs for the Facility addressed:",{"$nulls":10},"Drop down list"]
["Date P2 recommendations were provided to Facility:"]
["Date(s) of follow-up:"]
[]
[]
["P2 Actions and Outcomes"]
["Recommended P2 Actions","If Implemented:",{"$nulls":7},"If Not Implemented:"]
[null,"$",null,"Annual Reductions"]
[null,"One-time Cost to Implement ($)","Annual Savings from P2 Action ($)","Hazardous Material input (lbs)","Hazardous waste (lbs)","Air emissions (lbs)","Water pollution (lbs)","MTCO2e emissions (tons)","Water use (gal.)","Barrier to Implement","Plans to Implement within 5 years?     (pick Y/N)"]
{"$rows_empty":28}
["TOTAL",{"$f":"SUM(B21:B48)","v":{"v":0,"d":"$0"}},{"$f":"SUM(C21:C48)","v":{"v":0,"d":"$0"}},0,0,0,0,0,0]
[]
[]
["P2 Actions Implemented at a Business/Facility Prior to Technical Assistance (optional)"]
["P2 Actions Previously Implemented","If Available:"]
[null,"$",null,"Annual Reductions"]
[null,"One-time Cost to Implement ($)","Annual Savings from P2 Action ($)","Hazardous Materials used (lbs)","Hazardous waste (lbs)","Air emissions (lbs)","Water pollution (lbs)","MTCO2e emissions (tons)","Water use (gal.)"]

{"sheet":"Facility 10","index":11,"n_rows":55,"n_cols":12,"rows_kept":55,"merged":[[1,1,1,10],[4,1,4,10],[5,1,5,10],[6,1,6,10],[7,1,7,10],[8,1,8,10],[9,1,9,10],[10,1,10,10],[11,1,11,10],[12,1,12,10],[13,1,13,10],[17,0,19,0],[17,1,17,8],[17,9,17,10],[18,1,18,2],[18,3,18,8],[18,9,18,10],[51,0,51,8],[52,0,56,0],[52,1,52,8],[53,1,53,2],[53,3,53,8],[54,1,56,1],[54,2,56,2],[54,3,56,3],[54,4,56,4],[54,5,56,5],[54,6,56,6],[54,7,56,7],[54,8,56,8]]}
["Please scroll down to see all three tables"]
["Grantee:  ",{"$f":"'Grant Info & Instructions'!B2","v":0}]
[]
["Facility Information"]
["Facility Name (optional):"]
["EPA Facility Identifier (optional):"]
["Facility Contact (optional):"]
["Facility NAICS Code (6 Digits):"]
["Facility City (optional):"]
["Facility State:"]
["EPA Region where the Facility is located:",{"$nulls":10},"Drop down list"]
["NEAs for the Facility addressed:",{"$nulls":10},"Drop down list"]
["Date P2 recommendations were provided to Facility:"]
["Date(s) of follow-up:"]
[]
[]
["P2 Actions and Outcomes"]
["Recommended P2 Actions","If Implemented:",{"$nulls":7},"If Not Implemented:"]
[null,"$",null,"Annual Reductions"]
[null,"One-time Cost to Implement ($)","Annual Savings from P2 Action ($)","Hazardous Material input (lbs)","Hazardous waste (lbs)","Air emissions (lbs)","Water pollution (lbs)","MTCO2e emissions (tons)","Water use (gal.)","Barrier to Implement","Plans to Implement within 5 years?     (pick Y/N)"]
{"$rows_empty":28}
["TOTAL",{"$f":"SUM(B21:B48)","v":{"v":0,"d":"$0"}},{"$f":"SUM(C21:C48)","v":{"v":0,"d":"$0"}},0,0,0,0,0,0]
[]
[]
["P2 Actions Implemented at a Business/Facility Prior to Technical Assistance (optional)"]
["P2 Actions Previously Implemented","If Available:"]
[null,"$",null,"Annual Reductions"]
[null,"One-time Cost to Implement ($)","Annual Savings from P2 Action ($)","Hazardous Materials used (lbs)","Hazardous waste (lbs)","Air emissions (lbs)","Water pollution (lbs)","MTCO2e emissions (tons)","Water use (gal.)"]

{"sheet":"Facility 11","index":12,"n_rows":55,"n_cols":12,"rows_kept":55,"merged":[[1,1,1,10],[4,1,4,10],[5,1,5,10],[6,1,6,10],[7,1,7,10],[8,1,8,10],[9,1,9,10],[10,1,10,10],[11,1,11,10],[12,1,12,10],[13,1,13,10],[17,0,19,0],[17,1,17,8],[17,9,17,10],[18,1,18,2],[18,3,18,8],[18,9,18,10],[51,0,51,8],[52,0,56,0],[52,1,52,8],[53,1,53,2],[53,3,53,8],[54,1,56,1],[54,2,56,2],[54,3,56,3],[54,4,56,4],[54,5,56,5],[54,6,56,6],[54,7,56,7],[54,8,56,8]]}
["Please scroll down to see all three tables"]
["Grantee:  ",{"$f":"'Grant Info & Instructions'!B2","v":0}]
[]
["Facility Information"]
["Facility Name (optional):"]
["EPA Facility Identifier (optional):"]
["Facility Contact (optional):"]
["Facility NAICS Code (6 Digits):"]
["Facility City (optional):"]
["Facility State:"]
["EPA Region where the Facility is located:",{"$nulls":10},"Drop down list"]
["NEAs for the Facility addressed:",{"$nulls":10},"Drop down list"]
["Date P2 recommendations were provided to Facility:"]
["Date(s) of follow-up:"]
[]
[]
["P2 Actions and Outcomes"]
["Recommended P2 Actions","If Implemented:",{"$nulls":7},"If Not Implemented:"]
[null,"$",null,"Annual Reductions"]
[null,"One-time Cost to Implement ($)","Annual Savings from P2 Action ($)","Hazardous Material input (lbs)","Hazardous waste (lbs)","Air emissions (lbs)","Water pollution (lbs)","MTCO2e emissions (tons)","Water use (gal.)","Barrier to Implement","Plans to Implement within 5 years?     (pick Y/N)"]
{"$rows_empty":28}
["TOTAL",{"$f":"SUM(B21:B48)","v":{"v":0,"d":"$0"}},{"$f":"SUM(C21:C48)","v":{"v":0,"d":"$0"}},0,0,0,0,0,0]
[]
[]
["P2 Actions Implemented at a Business/Facility Prior to Technical Assistance (optional)"]
["P2 Actions Previously Implemented","If Available:"]
[null,"$",null,"Annual Reductions"]
[null,"One-time Cost to Implement ($)","Annual Savings from P2 Action ($)","Hazardous Materials used (lbs)","Hazardous waste (lbs)","Air emissions (lbs)","Water pollution (lbs)","MTCO2e emissions (tons)","Water use (gal.)"]

{"sheet":"Facility 12","index":13,"n_rows":55,"n_cols":12,"rows_kept":55,"merged":[[1,1,1,10],[4,1,4,10],[5,1,5,10],[6,1,6,10],[7,1,7,10],[8,1,8,10],[9,1,9,10],[10,1,10,10],[11,1,11,10],[12,1,12,10],[13,1,13,10],[17,0,19,0],[17,1,17,8],[17,9,17,10],[18,1,18,2],[18,3,18,8],[18,9,18,10],[51,0,51,8],[52,0,56,0],[52,1,52,8],[53,1,53,2],[53,3,53,8],[54,1,56,1],[54,2,56,2],[54,3,56,3],[54,4,56,4],[54,5,56,5],[54,6,56,6],[54,7,56,7],[54,8,56,8]]}
["Please scroll down to see all three tables"]
["Grantee:  ",{"$f":"'Grant Info & Instructions'!B2","v":0}]
[]
["Facility Information"]
["Facility Name (optional):"]
["EPA Facility Identifier (optional):"]
["Facility Contact (optional):"]
["Facility NAICS Code (6 Digits):"]
["Facility City (optional):"]
["Facility State:"]
["EPA Region where the Facility is located:",{"$nulls":10},"Drop down list"]
["NEAs for the Facility addressed:",{"$nulls":10},"Drop down list"]
["Date P2 recommendations were provided to Facility:"]
["Date(s) of follow-up:"]
[]
[]
["P2 Actions and Outcomes"]
["Recommended P2 Actions","If Implemented:",{"$nulls":7},"If Not Implemented:"]
[null,"$",null,"Annual Reductions"]
[null,"One-time Cost to Implement ($)","Annual Savings from P2 Action ($)","Hazardous Material input (lbs)","Hazardous waste (lbs)","Air emissions (lbs)","Water pollution (lbs)","MTCO2e emissions (tons)","Water use (gal.)","Barrier to Implement","Plans to Implement within 5 years?     (pick Y/N)"]
{"$rows_empty":28}
["TOTAL",{"$f":"SUM(B21:B48)","v":{"v":0,"d":"$0"}},{"$f":"SUM(C21:C48)","v":{"v":0,"d":"$0"}},0,0,0,0,0,0]
[]
[]
["P2 Actions Implemented at a Business/Facility Prior to Technical Assistance (optional)"]
["P2 Actions Previously Implemented","If Available:"]
[null,"$",null,"Annual Reductions"]
[null,"One-time Cost to Implement ($)","Annual Savings from P2 Action ($)","Hazardous Materials used (lbs)","Hazardous waste (lbs)","Air emissions (lbs)","Water pollution (lbs)","MTCO2e emissions (tons)","Water use (gal.)"]

{"sheet":"Facility 13","index":14,"n_rows":55,"n_cols":12,"rows_kept":55,"merged":[[1,1,1,10],[4,1,4,10],[5,1,5,10],[6,1,6,10],[7,1,7,10],[8,1,8,10],[9,1,9,10],[10,1,10,10],[11,1,11,10],[12,1,12,10],[13,1,13,10],[17,0,19,0],[17,1,17,8],[17,9,17,10],[18,1,18,2],[18,3,18,8],[18,9,18,10],[51,0,51,8],[52,0,56,0],[52,1,52,8],[53,1,53,2],[53,3,53,8],[54,1,56,1],[54,2,56,2],[54,3,56,3],[54,4,56,4],[54,5,56,5],[54,6,56,6],[54,7,56,7],[54,8,56,8]]}
["Please scroll down to see all three tables"]
["Grantee:  ",{"$f":"'Grant Info & Instructions'!B2","v":0}]
[]
["Facility Information"]
["Facility Name (optional):"]
["EPA Facility Identifier (optional):"]
["Facility Contact (optional):"]
["Facility NAICS Code (6 Digits):"]
["Facility City (optional):"]
["Facility State:"]
["EPA Region where the Facility is located:",{"$nulls":10},"Drop down list"]
["NEAs for the Facility addressed:",{"$nulls":10},"Drop down list"]
["Date P2 recommendations were provided to Facility:"]
["Date(s) of follow-up:"]
[]
[]
["P2 Actions and Outcomes"]
["Recommended P2 Actions","If Implemented:",{"$nulls":7},"If Not Implemented:"]
[null,"$",null,"Annual Reductions"]
[null,"One-time Cost to Implement ($)","Annual Savings from P2 Action ($)","Hazardous Material input (lbs)","Hazardous waste (lbs)","Air emissions (lbs)","Water pollution (lbs)","MTCO2e emissions (tons)","Water use (gal.)","Barrier to Implement","Plans to Implement within 5 years?     (pick Y/N)"]
{"$rows_empty":28}
["TOTAL",{"$f":"SUM(B21:B48)","v":{"v":0,"d":"$0"}},{"$f":"SUM(C21:C48)","v":{"v":0,"d":"$0"}},0,0,0,0,0,0]
[]
[]
["P2 Actions Implemented at a Business/Facility Prior to Technical Assistance (optional)"]
["P2 Actions Previously Implemented","If Available:"]
[null,"$",null,"Annual Reductions"]
[null,"One-time Cost to Implement ($)","Annual Savings from P2 Action ($)","Hazardous Materials used (lbs)","Hazardous waste (lbs)","Air emissions (lbs)","Water pollution (lbs)","MTCO2e emissions (tons)","Water use (gal.)"]

{"sheet":"Facility 14","index":15,"n_rows":55,"n_cols":12,"rows_kept":55,"merged":[[1,1,1,10],[4,1,4,10],[5,1,5,10],[6,1,6,10],[7,1,7,10],[8,1,8,10],[9,1,9,10],[10,1,10,10],[11,1,11,10],[12,1,12,10],[13,1,13,10],[17,0,19,0],[17,1,17,8],[17,9,17,10],[18,1,18,2],[18,3,18,8],[18,9,18,10],[51,0,51,8],[52,0,56,0],[52,1,52,8],[53,1,53,2],[53,3,53,8],[54,1,56,1],[54,2,56,2],[54,3,56,3],[54,4,56,4],[54,5,56,5],[54,6,56,6],[54,7,56,7],[54,8,56,8]]}
["Please scroll down to see all three tables"]
["Grantee:  ",{"$f":"'Grant Info & Instructions'!B2","v":0}]
[]
["Facility Information"]
["Facility Name (optional):"]
["EPA Facility Identifier (optional):"]
["Facility Contact (optional):"]
["Facility NAICS Code (6 Digits):"]
["Facility City (optional):"]
["Facility State:"]
["EPA Region where the Facility is located:",{"$nulls":10},"Drop down list"]
["NEAs for the Facility addressed:",{"$nulls":10},"Drop down list"]
["Date P2 recommendations were provided to Facility:"]
["Date(s) of follow-up:"]
[]
[]
["P2 Actions and Outcomes"]
["Recommended P2 Actions","If Implemented:",{"$nulls":7},"If Not Implemented:"]
[null,"$",null,"Annual Reductions"]
[null,"One-time Cost to Implement ($)","Annual Savings from P2 Action ($)","Hazardous Material input (lbs)","Hazardous waste (lbs)","Air emissions (lbs)","Water pollution (lbs)","MTCO2e emissions (tons)","Water use (gal.)","Barrier to Implement","Plans to Implement within 5 years?     (pick Y/N)"]
{"$rows_empty":28}
["TOTAL",{"$f":"SUM(B21:B48)","v":{"v":0,"d":"$0"}},{"$f":"SUM(C21:C48)","v":{"v":0,"d":"$0"}},0,0,0,0,0,0]
[]
[]
["P2 Actions Implemented at a Business/Facility Prior to Technical Assistance (optional)"]
["P2 Actions Previously Implemented","If Available:"]
[null,"$",null,"Annual Reductions"]
[null,"One-time Cost to Implement ($)","Annual Savings from P2 Action ($)","Hazardous Materials used (lbs)","Hazardous waste (lbs)","Air emissions (lbs)","Water pollution (lbs)","MTCO2e emissions (tons)","Water use (gal.)"]

{"sheet":"Facility 15","index":16,"n_rows":55,"n_cols":12,"rows_kept":55,"merged":[[1,1,1,10],[4,1,4,10],[5,1,5,10],[6,1,6,10],[7,1,7,10],[8,1,8,10],[9,1,9,10],[10,1,10,10],[11,1,11,10],[12,1,12,10],[13,1,13,10],[17,0,19,0],[17,1,17,8],[17,9,17,10],[18,1,18,2],[18,3,18,8],[18,9,18,10],[51,0,51,8],[52,0,56,0],[52,1,52,8],[53,1,53,2],[53,3,53,8],[54,1,56,1],[54,2,56,2],[54,3,56,3],[54,4,56,4],[54,5,56,5],[54,6,56,6],[54,7,56,7],[54,8,56,8]]}
["Please scroll down to see all three tables"]
["Grantee:  ",{"$f":"'Grant Info & Instructions'!B2","v":0}]
[]
["Facility Information"]
["Facility Name (optional):"]
["EPA Facility Identifier (optional):"]
["Facility Contact (optional):"]
["Facility NAICS Code (6 Digits):"]
["Facility City (optional):"]
["Facility State:"]
["EPA Region where the Facility is located:",{"$nulls":10},"Drop down list"]
["NEAs for the Facility addressed:",{"$nulls":10},"Drop down list"]
["Date P2 recommendations were provided to Facility:"]
["Date(s) of follow-up:"]
[]
[]
["P2 Actions and Outcomes"]
["Recommended P2 Actions","If Implemented:",{"$nulls":7},"If Not Implemented:"]
[null,"$",null,"Annual Reductions"]
[null,"One-time Cost to Implement ($)","Annual Savings from P2 Action ($)","Hazardous Material input (lbs)","Hazardous waste (lbs)","Air emissions (lbs)","Water pollution (lbs)","MTCO2e emissions (tons)","Water use (gal.)","Barrier to Implement","Plans to Implement within 5 years?     (pick Y/N)"]
{"$rows_empty":28}
["TOTAL",{"$f":"SUM(B21:B48)","v":{"v":0,"d":"$0"}},{"$f":"SUM(C21:C48)","v":{"v":0,"d":"$0"}},0,0,0,0,0,0]
[]
[]
["P2 Actions Implemented at a Business/Facility Prior to Technical Assistance (optional)"]
["P2 Actions Previously Implemented","If Available:"]
[null,"$",null,"Annual Reductions"]
[null,"One-time Cost to Implement ($)","Annual Savings from P2 Action ($)","Hazardous Materials used (lbs)","Hazardous waste (lbs)","Air emissions (lbs)","Water pollution (lbs)","MTCO2e emissions (tons)","Water use (gal.)"]

{"sheet":"Facility 16 ","index":17,"n_rows":55,"n_cols":12,"rows_kept":55,"merged":[[1,1,1,10],[4,1,4,10],[5,1,5,10],[6,1,6,10],[7,1,7,10],[8,1,8,10],[9,1,9,10],[10,1,10,10],[11,1,11,10],[12,1,12,10],[13,1,13,10],[17,0,19,0],[17,1,17,8],[17,9,17,10],[18,1,18,2],[18,3,18,8],[18,9,18,10],[51,0,51,8],[52,0,56,0],[52,1,52,8],[53,1,53,2],[53,3,53,8],[54,1,56,1],[54,2,56,2],[54,3,56,3],[54,4,56,4],[54,5,56,5],[54,6,56,6],[54,7,56,7],[54,8,56,8]]}
["Please scroll down to see all three tables"]
["Grantee:  ",{"$f":"'Grant Info & Instructions'!B2","v":0}]
[]
["Facility Information"]
["Facility Name (optional):"]
["EPA Facility Identifier (optional):"]
["Facility Contact (optional):"]
["Facility NAICS Code (6 Digits):"]
["Facility City (optional):"]
["Facility State:"]
["EPA Region where the Facility is located:",{"$nulls":10},"Drop down list"]
["NEAs for the Facility addressed:",{"$nulls":10},"Drop down list"]
["Date P2 recommendations were provided to Facility:"]
["Date(s) of follow-up:"]
[]
[]
["P2 Actions and Outcomes"]
["Recommended P2 Actions","If Implemented:",{"$nulls":7},"If Not Implemented:"]
[null,"$",null,"Annual Reductions"]
[null,"One-time Cost to Implement ($)","Annual Savings from P2 Action ($)","Hazardous Material input (lbs)","Hazardous waste (lbs)","Air emissions (lbs)","Water pollution (lbs)","MTCO2e emissions (tons)","Water use (gal.)","Barrier to Implement","Plans to Implement within 5 years?     (pick Y/N)"]
{"$rows_empty":28}
["TOTAL",{"$f":"SUM(B21:B48)","v":{"v":0,"d":"$0"}},{"$f":"SUM(C21:C48)","v":{"v":0,"d":"$0"}},0,0,0,0,0,0]
[]
[]
["P2 Actions Implemented at a Business/Facility Prior to Technical Assistance (optional)"]
["P2 Actions Previously Implemented","If Available:"]
[null,"$",null,"Annual Reductions"]
[null,"One-time Cost to Implement ($)","Annual Savings from P2 Action ($)","Hazardous Materials used (lbs)","Hazardous waste (lbs)","Air emissions (lbs)","Water pollution (lbs)","MTCO2e emissions (tons)","Water use (gal.)"]

{"sheet":"Facility 17","index":18,"n_rows":55,"n_cols":12,"rows_kept":55,"merged":[[1,1,1,10],[4,1,4,10],[5,1,5,10],[6,1,6,10],[7,1,7,10],[8,1,8,10],[9,1,9,10],[10,1,10,10],[11,1,11,10],[12,1,12,10],[13,1,13,10],[17,0,19,0],[17,1,17,8],[17,9,17,10],[18,1,18,2],[18,3,18,8],[18,9,18,10],[51,0,51,8],[52,0,56,0],[52,1,52,8],[53,1,53,2],[53,3,53,8],[54,1,56,1],[54,2,56,2],[54,3,56,3],[54,4,56,4],[54,5,56,5],[54,6,56,6],[54,7,56,7],[54,8,56,8]]}
["Please scroll down to see all three tables"]
["Grantee:  ",{"$f":"'Grant Info & Instructions'!B2","v":0}]
[]
["Facility Information"]
["Facility Name (optional):"]
["EPA Facility Identifier (optional):"]
["Facility Contact (optional):"]
["Facility NAICS Code (6 Digits):"]
["Facility City (optional):"]
["Facility State:"]
["EPA Region where the Facility is located:",{"$nulls":10},"Drop down list"]
["NEAs for the Facility addressed:",{"$nulls":10},"Drop down list"]
["Date P2 recommendations were provided to Facility:"]
["Date(s) of follow-up:"]
[]
[]
["P2 Actions and Outcomes"]
["Recommended P2 Actions","If Implemented:",{"$nulls":7},"If Not Implemented:"]
[null,"$",null,"Annual Reductions"]
[null,"One-time Cost to Implement ($)","Annual Savings from P2 Action ($)","Hazardous Material input (lbs)","Hazardous waste (lbs)","Air emissions (lbs)","Water pollution (lbs)","MTCO2e emissions (tons)","Water use (gal.)","Barrier to Implement","Plans to Implement within 5 years?     (pick Y/N)"]
{"$rows_empty":28}
["TOTAL",{"$f":"SUM(B21:B48)","v":{"v":0,"d":"$0"}},{"$f":"SUM(C21:C48)","v":{"v":0,"d":"$0"}},0,0,0,0,0,0]
[]
[]
["P2 Actions Implemented at a Business/Facility Prior to Technical Assistance (optional)"]
["P2 Actions Previously Implemented","If Available:"]
[null,"$",null,"Annual Reductions"]
[null,"One-time Cost to Implement ($)","Annual Savings from P2 Action ($)","Hazardous Materials used (lbs)","Hazardous waste (lbs)","Air emissions (lbs)","Water pollution (lbs)","MTCO2e emissions (tons)","Water use (gal.)"]

{"sheet":"Facility 18","index":19,"n_rows":55,"n_cols":12,"rows_kept":55,"merged":[[1,1,1,10],[4,1,4,10],[5,1,5,10],[6,1,6,10],[7,1,7,10],[8,1,8,10],[9,1,9,10],[10,1,10,10],[11,1,11,10],[12,1,12,10],[13,1,13,10],[17,0,19,0],[17,1,17,8],[17,9,17,10],[18,1,18,2],[18,3,18,8],[18,9,18,10],[51,0,51,8],[52,0,56,0],[52,1,52,8],[53,1,53,2],[53,3,53,8],[54,1,56,1],[54,2,56,2],[54,3,56,3],[54,4,56,4],[54,5,56,5],[54,6,56,6],[54,7,56,7],[54,8,56,8]]}
["Please scroll down to see all three tables"]
["Grantee:  ",{"$f":"'Grant Info & Instructions'!B2","v":0}]
[]
["Facility Information"]
["Facility Name (optional):"]
["EPA Facility Identifier (optional):"]
["Facility Contact (optional):"]
["Facility NAICS Code (6 Digits):"]
["Facility City (optional):"]
["Facility State:"]
["EPA Region where the Facility is located:",{"$nulls":10},"Drop down list"]
["NEAs for the Facility addressed:",{"$nulls":10},"Drop down list"]
["Date P2 recommendations were provided to Facility:"]
["Date(s) of follow-up:"]
[]
[]
["P2 Actions and Outcomes"]
["Recommended P2 Actions","If Implemented:",{"$nulls":7},"If Not Implemented:"]
[null,"$",null,"Annual Reductions"]
[null,"One-time Cost to Implement ($)","Annual Savings from P2 Action ($)","Hazardous Material input (lbs)","Hazardous waste (lbs)","Air emissions (lbs)","Water pollution (lbs)","MTCO2e emissions (tons)","Water use (gal.)","Barrier to Implement","Plans to Implement within 5 years?     (pick Y/N)"]
{"$rows_empty":28}
["TOTAL",{"$f":"SUM(B21:B48)","v":{"v":0,"d":"$0"}},{"$f":"SUM(C21:C48)","v":{"v":0,"d":"$0"}},0,0,0,0,0,0]
[]
[]
["P2 Actions Implemented at a Business/Facility Prior to Technical Assistance (optional)"]
["P2 Actions Previously Implemented","If Available:"]
[null,"$",null,"Annual Reductions"]
[null,"One-time Cost to Implement ($)","Annual Savings from P2 Action ($)","Hazardous Materials used (lbs)","Hazardous waste (lbs)","Air emissions (lbs)","Water pollution (lbs)","MTCO2e emissions (tons)","Water use (gal.)"]

{"sheet":"Facility 19","index":20,"n_rows":55,"n_cols":12,"rows_kept":55,"merged":[[1,1,1,10],[4,1,4,10],[5,1,5,10],[6,1,6,10],[7,1,7,10],[8,1,8,10],[9,1,9,10],[10,1,10,10],[11,1,11,10],[12,1,12,10],[13,1,13,10],[17,0,19,0],[17,1,17,8],[17,9,17,10],[18,1,18,2],[18,3,18,8],[18,9,18,10],[51,0,51,8],[52,0,56,0],[52,1,52,8],[53,1,53,2],[53,3,53,8],[54,1,56,1],[54,2,56,2],[54,3,56,3],[54,4,56,4],[54,5,56,5],[54,6,56,6],[54,7,56,7],[54,8,56,8]]}
["Please scroll down to see all three tables"]
["Grantee:  ",{"$f":"'Grant Info & Instructions'!B2","v":0}]
[]
["Facility Information"]
["Facility Name (optional):"]
["EPA Facility Identifier (optional):"]
["Facility Contact (optional):"]
["Facility NAICS Code (6 Digits):"]
["Facility City (optional):"]
["Facility State:"]
["EPA Region where the Facility is located:",{"$nulls":10},"Drop down list"]
["NEAs for the Facility addressed:",{"$nulls":10},"Drop down list"]
["Date P2 recommendations were provided to Facility:"]
["Date(s) of follow-up:"]
[]
[]
["P2 Actions and Outcomes"]
["Recommended P2 Actions","If Implemented:",{"$nulls":7},"If Not Implemented:"]
[null,"$",null,"Annual Reductions"]
[null,"One-time Cost to Implement ($)","Annual Savings from P2 Action ($)","Hazardous Material input (lbs)","Hazardous waste (lbs)","Air emissions (lbs)","Water pollution (lbs)","MTCO2e emissions (tons)","Water use (gal.)","Barrier to Implement","Plans to Implement within 5 years?     (pick Y/N)"]
{"$rows_empty":28}
["TOTAL",{"$f":"SUM(B21:B48)","v":{"v":0,"d":"$0"}},{"$f":"SUM(C21:C48)","v":{"v":0,"d":"$0"}},0,0,0,0,0,0]
[]
[]
["P2 Actions Implemented at a Business/Facility Prior to Technical Assistance (optional)"]
["P2 Actions Previously Implemented","If Available:"]
[null,"$",null,"Annual Reductions"]
[null,"One-time Cost to Implement ($)","Annual Savings from P2 Action ($)","Hazardous Materials used (lbs)","Hazardous waste (lbs)","Air emissions (lbs)","Water pollution (lbs)","MTCO2e emissions (tons)","Water use (gal.)"]

{"sheet":"Facility 20","index":21,"n_rows":55,"n_cols":12,"rows_kept":55,"merged":[[1,1,1,10],[4,1,4,10],[5,1,5,10],[6,1,6,10],[7,1,7,10],[8,1,8,10],[9,1,9,10],[10,1,10,10],[11,1,11,10],[12,1,12,10],[13,1,13,10],[17,0,19,0],[17,1,17,8],[17,9,17,10],[18,1,18,2],[18,3,18,8],[18,9,18,10],[51,0,51,8],[52,0,56,0],[52,1,52,8],[53,1,53,2],[53,3,53,8],[54,1,56,1],[54,2,56,2],[54,3,56,3],[54,4,56,4],[54,5,56,5],[54,6,56,6],[54,7,56,7],[54,8,56,8]]}
["Please scroll down to see all three tables"]
["Grantee:  ",{"$f":"'Grant Info & Instructions'!B2","v":0}]
[]
["Facility Information"]
["Facility Name (optional):"]
["EPA Facility Identifier (optional):"]
["Facility Contact (optional):"]
["Facility NAICS Code (6 Digits):"]
["Facility City (optional):"]
["Facility State:"]
["EPA Region where the Facility is located:",{"$nulls":10},"Drop down list"]
["NEAs for the Facility addressed:",{"$nulls":10},"Drop down list"]
["Date P2 recommendations were provided to Facility:"]
["Date(s) of follow-up:"]
[]
[]
["P2 Actions and Outcomes"]
["Recommended P2 Actions","If Implemented:",{"$nulls":7},"If Not Implemented:"]
[null,"$",null,"Annual Reductions"]
[null,"One-time Cost to Implement ($)","Annual Savings from P2 Action ($)","Hazardous Material input (lbs)","Hazardous waste (lbs)","Air emissions (lbs)","Water pollution (lbs)","MTCO2e emissions (tons)","Water use (gal.)","Barrier to Implement","Plans to Implement within 5 years?     (pick Y/N)"]
{"$rows_empty":28}
["TOTAL",{"$f":"SUM(B21:B48)","v":{"v":0,"d":"$0"}},{"$f":"SUM(C21:C48)","v":{"v":0,"d":"$0"}},0,0,0,0,0,0]
[]
[]
["P2 Actions Implemented at a Business/Facility Prior to Technical Assistance (optional)"]
["P2 Actions Previously Implemented","If Available:"]
[null,"$",null,"Annual Reductions"]
[null,"One-time Cost to Implement ($)","Annual Savings from P2 Action ($)","Hazardous Materials used (lbs)","Hazardous waste (lbs)","Air emissions (lbs)","Water pollution (lbs)","MTCO2e emissions (tons)","Water use (gal.)"]

{"sheet":"Facility 21","index":22,"n_rows":55,"n_cols":12,"rows_kept":55,"merged":[[1,1,1,10],[4,1,4,10],[5,1,5,10],[6,1,6,10],[7,1,7,10],[8,1,8,10],[9,1,9,10],[10,1,10,10],[11,1,11,10],[12,1,12,10],[13,1,13,10],[17,0,19,0],[17,1,17,8],[17,9,17,10],[18,1,18,2],[18,3,18,8],[18,9,18,10],[51,0,51,8],[52,0,56,0],[52,1,52,8],[53,1,53,2],[53,3,53,8],[54,1,56,1],[54,2,56,2],[54,3,56,3],[54,4,56,4],[54,5,56,5],[54,6,56,6],[54,7,56,7],[54,8,56,8]]}
["Please scroll down to see all three tables"]
["Grantee:  ",{"$f":"'Grant Info & Instructions'!B2","v":0}]
[]
["Facility Information"]
["Facility Name (optional):"]
["EPA Facility Identifier (optional):"]
["Facility Contact (optional):"]
["Facility NAICS Code (6 Digits):"]
["Facility City (optional):"]
["Facility State:"]
["EPA Region where the Facility is located:",{"$nulls":10},"Drop down list"]
["NEAs for the Facility addressed:",{"$nulls":10},"Drop down list"]
["Date P2 recommendations were provided to Facility:"]
["Date(s) of follow-up:"]
[]
[]
["P2 Actions and Outcomes"]
["Recommended P2 Actions","If Implemented:",{"$nulls":7},"If Not Implemented:"]
[null,"$",null,"Annual Reductions"]
[null,"One-time Cost to Implement ($)","Annual Savings from P2 Action ($)","Hazardous Material input (lbs)","Hazardous waste (lbs)","Air emissions (lbs)","Water pollution (lbs)","MTCO2e emissions (tons)","Water use (gal.)","Barrier to Implement","Plans to Implement within 5 years?     (pick Y/N)"]
{"$rows_empty":28}
["TOTAL",{"$f":"SUM(B21:B48)","v":{"v":0,"d":"$0"}},{"$f":"SUM(C21:C48)","v":{"v":0,"d":"$0"}},0,0,0,0,0,0]
[]
[]
["P2 Actions Implemented at a Business/Facility Prior to Technical Assistance (optional)"]
["P2 Actions Previously Implemented","If Available:"]
[null,"$",null,"Annual Reductions"]
[null,"One-time Cost to Implement ($)","Annual Savings from P2 Action ($)","Hazardous Materials used (lbs)","Hazardous waste (lbs)","Air emissions (lbs)","Water pollution (lbs)","MTCO2e emissions (tons)","Water use (gal.)"]

{"sheet":"Facility 22","index":23,"n_rows":55,"n_cols":12,"rows_kept":55,"merged":[[1,1,1,10],[4,1,4,10],[5,1,5,10],[6,1,6,10],[7,1,7,10],[8,1,8,10],[9,1,9,10],[10,1,10,10],[11,1,11,10],[12,1,12,10],[13,1,13,10],[17,0,19,0],[17,1,17,8],[17,9,17,10],[18,1,18,2],[18,3,18,8],[18,9,18,10],[51,0,51,8],[52,0,56,0],[52,1,52,8],[53,1,53,2],[53,3,53,8],[54,1,56,1],[54,2,56,2],[54,3,56,3],[54,4,56,4],[54,5,56,5],[54,6,56,6],[54,7,56,7],[54,8,56,8]]}
["Please scroll down to see all three tables"]
["Grantee:  ",{"$f":"'Grant Info & Instructions'!B2","v":0}]
[]
["Facility Information"]
["Facility Name (optional):"]
["EPA Facility Identifier (optional):"]
["Facility Contact (optional):"]
["Facility NAICS Code (6 Digits):"]
["Facility City (optional):"]
["Facility State:"]
["EPA Region where the Facility is located:",{"$nulls":10},"Drop down list"]
["NEAs for the Facility addressed:",{"$nulls":10},"Drop down list"]
["Date P2 recommendations were provided to Facility:"]
["Date(s) of follow-up:"]
[]
[]
["P2 Actions and Outcomes"]
["Recommended P2 Actions","If Implemented:",{"$nulls":7},"If Not Implemented:"]
[null,"$",null,"Annual Reductions"]
[null,"One-time Cost to Implement ($)","Annual Savings from P2 Action ($)","Hazardous Material input (lbs)","Hazardous waste (lbs)","Air emissions (lbs)","Water pollution (lbs)","MTCO2e emissions (tons)","Water use (gal.)","Barrier to Implement","Plans to Implement within 5 years?     (pick Y/N)"]
{"$rows_empty":28}
["TOTAL",{"$f":"SUM(B21:B48)","v":{"v":0,"d":"$0"}},{"$f":"SUM(C21:C48)","v":{"v":0,"d":"$0"}},0,0,0,0,0,0]
[]
[]
["P2 Actions Implemented at a Business/Facility Prior to Technical Assistance (optional)"]
["P2 Actions Previously Implemented","If Available:"]
[null,"$",null,"Annual Reductions"]
[null,"One-time Cost to Implement ($)","Annual Savings from P2 Action ($)","Hazardous Materials used (lbs)","Hazardous waste (lbs)","Air emissions (lbs)","Water pollution (lbs)","MTCO2e emissions (tons)","Water use (gal.)"]

{"sheet":"Facility 23","index":24,"n_rows":55,"n_cols":12,"rows_kept":55,"merged":[[1,1,1,10],[4,1,4,10],[5,1,5,10],[6,1,6,10],[7,1,7,10],[8,1,8,10],[9,1,9,10],[10,1,10,10],[11,1,11,10],[12,1,12,10],[13,1,13,10],[17,0,19,0],[17,1,17,8],[17,9,17,10],[18,1,18,2],[18,3,18,8],[18,9,18,10],[51,0,51,8],[52,0,56,0],[52,1,52,8],[53,1,53,2],[53,3,53,8],[54,1,56,1],[54,2,56,2],[54,3,56,3],[54,4,56,4],[54,5,56,5],[54,6,56,6],[54,7,56,7],[54,8,56,8]]}
["Please scroll down to see all three tables"]
["Grantee:  ",{"$f":"'Grant Info & Instructions'!B2","v":0}]
[]
["Facility Information"]
["Facility Name (optional):"]
["EPA Facility Identifier (optional):"]
["Facility Contact (optional):"]
["Facility NAICS Code (6 Digits):"]
["Facility City (optional):"]
["Facility State:"]
["EPA Region where the Facility is located:",{"$nulls":10},"Drop down list"]
["NEAs for the Facility addressed:",{"$nulls":10},"Drop down list"]
["Date P2 recommendations were provided to Facility:"]
["Date(s) of follow-up:"]
[]
[]
["P2 Actions and Outcomes"]
["Recommended P2 Actions","If Implemented:",{"$nulls":7},"If Not Implemented:"]
[null,"$",null,"Annual Reductions"]
[null,"One-time Cost to Implement ($)","Annual Savings from P2 Action ($)","Hazardous Material input (lbs)","Hazardous waste (lbs)","Air emissions (lbs)","Water pollution (lbs)","MTCO2e emissions (tons)","Water use (gal.)","Barrier to Implement","Plans to Implement within 5 years?     (pick Y/N)"]
{"$rows_empty":28}
["TOTAL",{"$f":"SUM(B21:B48)","v":{"v":0,"d":"$0"}},{"$f":"SUM(C21:C48)","v":{"v":0,"d":"$0"}},0,0,0,0,0,0]
[]
[]
["P2 Actions Implemented at a Business/Facility Prior to Technical Assistance (optional)"]
["P2 Actions Previously Implemented","If Available:"]
[null,"$",null,"Annual Reductions"]
[null,"One-time Cost to Implement ($)","Annual Savings from P2 Action ($)","Hazardous Materials used (lbs)","Hazardous waste (lbs)","Air emissions (lbs)","Water pollution (lbs)","MTCO2e emissions (tons)","Water use (gal.)"]

{"sheet":"Facility 24","index":25,"n_rows":55,"n_cols":12,"rows_kept":55,"merged":[[1,1,1,10],[4,1,4,10],[5,1,5,10],[6,1,6,10],[7,1,7,10],[8,1,8,10],[9,1,9,10],[10,1,10,10],[11,1,11,10],[12,1,12,10],[13,1,13,10],[17,0,19,0],[17,1,17,8],[17,9,17,10],[18,1,18,2],[18,3,18,8],[18,9,18,10],[51,0,51,8],[52,0,56,0],[52,1,52,8],[53,1,53,2],[53,3,53,8],[54,1,56,1],[54,2,56,2],[54,3,56,3],[54,4,56,4],[54,5,56,5],[54,6,56,6],[54,7,56,7],[54,8,56,8]]}
["Please scroll down to see all three tables"]
["Grantee:  ",{"$f":"'Grant Info & Instructions'!B2","v":0}]
[]
["Facility Information"]
["Facility Name (optional):"]
["EPA Facility Identifier (optional):"]
["Facility Contact (optional):"]
["Facility NAICS Code (6 Digits):"]
["Facility City (optional):"]
["Facility State:"]
["EPA Region where the Facility is located:",{"$nulls":10},"Drop down list"]
["NEAs for the Facility addressed:",{"$nulls":10},"Drop down list"]
["Date P2 recommendations were provided to Facility:"]
["Date(s) of follow-up:"]
[]
[]
["P2 Actions and Outcomes"]
["Recommended P2 Actions","If Implemented:",{"$nulls":7},"If Not Implemented:"]
[null,"$",null,"Annual Reductions"]
[null,"One-time Cost to Implement ($)","Annual Savings from P2 Action ($)","Hazardous Material input (lbs)","Hazardous waste (lbs)","Air emissions (lbs)","Water pollution (lbs)","MTCO2e emissions (tons)","Water use (gal.)","Barrier to Implement","Plans to Implement within 5 years?     (pick Y/N)"]
{"$rows_empty":28}
["TOTAL",{"$f":"SUM(B21:B48)","v":{"v":0,"d":"$0"}},{"$f":"SUM(C21:C48)","v":{"v":0,"d":"$0"}},0,0,0,0,0,0]
[]
[]
["P2 Actions Implemented at a Business/Facility Prior to Technical Assistance (optional)"]
["P2 Actions Previously Implemented","If Available:"]
[null,"$",null,"Annual Reductions"]
[null,"One-time Cost to Implement ($)","Annual Savings from P2 Action ($)","Hazardous Materials used (lbs)","Hazardous waste (lbs)","Air emissions (lbs)","Water pollution (lbs)","MTCO2e emissions (tons)","Water use (gal.)"]

{"sheet":"Facility 25","index":26,"n_rows":55,"n_cols":12,"rows_kept":55,"merged":[[1,1,1,10],[4,1,4,10],[5,1,5,10],[6,1,6,10],[7,1,7,10],[8,1,8,10],[9,1,9,10],[10,1,10,10],[11,1,11,10],[12,1,12,10],[13,1,13,10],[17,0,19,0],[17,1,17,8],[17,9,17,10],[18,1,18,2],[18,3,18,8],[18,9,18,10],[51,0,51,8],[52,0,56,0],[52,1,52,8],[53,1,53,2],[53,3,53,8],[54,1,56,1],[54,2,56,2],[54,3,56,3],[54,4,56,4],[54,5,56,5],[54,6,56,6],[54,7,56,7],[54,8,56,8]]}
["Please scroll down to see all three tables"]
["Grantee:  ",{"$f":"'Grant Info & Instructions'!B2","v":0}]
[]
["Facility Information"]
["Facility Name (optional):"]
["EPA Facility Identifier (optional):"]
["Facility Contact (optional):"]
["Facility NAICS Code (6 Digits):"]
["Facility City (optional):"]
["Facility State:"]
["EPA Region where the Facility is located:",{"$nulls":10},"Drop down list"]
["NEAs for the Facility addressed:",{"$nulls":10},"Drop down list"]
["Date P2 recommendations were provided to Facility:"]
["Date(s) of follow-up:"]
[]
[]
["P2 Actions and Outcomes"]
["Recommended P2 Actions","If Implemented:",{"$nulls":7},"If Not Implemented:"]
[null,"$",null,"Annual Reductions"]
[null,"One-time Cost to Implement ($)","Annual Savings from P2 Action ($)","Hazardous Material input (lbs)","Hazardous waste (lbs)","Air emissions (lbs)","Water pollution (lbs)","MTCO2e emissions (tons)","Water use (gal.)","Barrier to Implement","Plans to Implement within 5 years?     (pick Y/N)"]
{"$rows_empty":28}
["TOTAL",{"$f":"SUM(B21:B48)","v":{"v":0,"d":"$0"}},{"$f":"SUM(C21:C48)","v":{"v":0,"d":"$0"}},0,0,0,0,0,0]
[]
[]
["P2 Actions Implemented at a Business/Facility Prior to Technical Assistance (optional)"]
["P2 Actions Previously Implemented","If Available:"]
[null,"$",null,"Annual Reductions"]
[null,"One-time Cost to Implement ($)","Annual Savings from P2 Action ($)","Hazardous Materials used (lbs)","Hazardous waste (lbs)","Air emissions (lbs)","Water pollution (lbs)","MTCO2e emissions (tons)","Water use (gal.)"]

{"sheet":"Facility 26","index":27,"n_rows":55,"n_cols":12,"rows_kept":55,"merged":[[1,1,1,10],[4,1,4,10],[5,1,5,10],[6,1,6,10],[7,1,7,10],[8,1,8,10],[9,1,9,10],[10,1,10,10],[11,1,11,10],[12,1,12,10],[13,1,13,10],[17,0,19,0],[17,1,17,8],[17,9,17,10],[18,1,18,2],[18,3,18,8],[18,9,18,10],[51,0,51,8],[52,0,56,0],[52,1,52,8],[53,1,53,2],[53,3,53,8],[54,1,56,1],[54,2,56,2],[54,3,56,3],[54,4,56,4],[54,5,56,5],[54,6,56,6],[54,7,56,7],[54,8,56,8]]}
["Please scroll down to see all three tables"]
["Grantee:  ",{"$f":"'Grant Info & Instructions'!B2","v":0}]
[]
["Facility Information"]
["Facility Name (optional):"]
["EPA Facility Identifier (optional):"]
["Facility Contact (optional):"]
["Facility NAICS Code (6 Digits):"]
["Facility City (optional):"]
["Facility State:"]
["EPA Region where the Facility is located:",{"$nulls":10},"Drop down list"]
["NEAs for the Facility addressed:",{"$nulls":10},"Drop down list"]
["Date P2 recommendations were provided to Facility:"]
["Date(s) of follow-up:"]
[]
[]
["P2 Actions and Outcomes"]
["Recommended P2 Actions","If Implemented:",{"$nulls":7},"If Not Implemented:"]
[null,"$",null,"Annual Reductions"]
[null,"One-time Cost to Implement ($)","Annual Savings from P2 Action ($)","Hazardous Material input (lbs)","Hazardous waste (lbs)","Air emissions (lbs)","Water pollution (lbs)","MTCO2e emissions (tons)","Water use (gal.)","Barrier to Implement","Plans to Implement within 5 years?     (pick Y/N)"]
{"$rows_empty":28}
["TOTAL",{"$f":"SUM(B21:B48)","v":{"v":0,"d":"$0"}},{"$f":"SUM(C21:C48)","v":{"v":0,"d":"$0"}},0,0,0,0,0,0]
[]
[]
["P2 Actions Implemented at a Business/Facility Prior to Technical Assistance (optional)"]
["P2 Actions Previously Implemented","If Available:"]
[null,"$",null,"Annual Reductions"]
[null,"One-time Cost to Implement ($)","Annual Savings from P2 Action ($)","Hazardous Materials used (lbs)","Hazardous waste (lbs)","Air emissions (lbs)","Water pollution (lbs)","MTCO2e emissions (tons)","Water use (gal.)"]

{"sheet":"Facility 27","index":28,"n_rows":55,"n_cols":12,"rows_kept":55,"merged":[[1,1,1,10],[4,1,4,10],[5,1,5,10],[6,1,6,10],[7,1,7,10],[8,1,8,10],[9,1,9,10],[10,1,10,10],[11,1,11,10],[12,1,12,10],[13,1,13,10],[17,0,19,0],[17,1,17,8],[17,9,17,10],[18,1,18,2],[18,3,18,8],[18,9,18,10],[51,0,51,8],[52,0,56,0],[52,1,52,8],[53,1,53,2],[53,3,53,8],[54,1,56,1],[54,2,56,2],[54,3,56,3],[54,4,56,4],[54,5,56,5],[54,6,56,6],[54,7,56,7],[54,8,56,8]]}
["Please scroll down to see all three tables"]
["Grantee:  ",{"$f":"'Grant Info & Instructions'!B2","v":0}]
[]
["Facility Information"]
["Facility Name (optional):"]
["EPA Facility Identifier (optional):"]
["Facility Contact (optional):"]
["Facility NAICS Code (6 Digits):"]
["Facility City (optional):"]
["Facility State:"]
["EPA Region where the Facility is located:",{"$nulls":10},"Drop down list"]
["NEAs for the Facility addressed:",{"$nulls":10},"Drop down list"]
["Date P2 recommendations were provided to Facility:"]
["Date(s) of follow-up:"]
[]
[]
["P2 Actions and Outcomes"]
["Recommended P2 Actions","If Implemented:",{"$nulls":7},"If Not Implemented:"]
[null,"$",null,"Annual Reductions"]
[null,"One-time Cost to Implement ($)","Annual Savings from P2 Action ($)","Hazardous Material input (lbs)","Hazardous waste (lbs)","Air emissions (lbs)","Water pollution (lbs)","MTCO2e emissions (tons)","Water use (gal.)","Barrier to Implement","Plans to Implement within 5 years?     (pick Y/N)"]
{"$rows_empty":28}
["TOTAL",{"$f":"SUM(B21:B48)","v":{"v":0,"d":"$0"}},{"$f":"SUM(C21:C48)","v":{"v":0,"d":"$0"}},0,0,0,0,0,0]
[]
[]
["P2 Actions Implemented at a Business/Facility Prior to Technical Assistance (optional)"]
["P2 Actions Previously Implemented","If Available:"]
[null,"$",null,"Annual Reductions"]
[null,"One-time Cost to Implement ($)","Annual Savings from P2 Action ($)","Hazardous Materials used (lbs)","Hazardous waste (lbs)","Air emissions (lbs)","Water pollution (lbs)","MTCO2e emissions (tons)","Water use (gal.)"]

{"sheet":"Facility 28","index":29,"n_rows":55,"n_cols":12,"rows_kept":55,"merged":[[1,1,1,10],[4,1,4,10],[5,1,5,10],[6,1,6,10],[7,1,7,10],[8,1,8,10],[9,1,9,10],[10,1,10,10],[11,1,11,10],[12,1,12,10],[13,1,13,10],[17,0,19,0],[17,1,17,8],[17,9,17,10],[18,1,18,2],[18,3,18,8],[18,9,18,10],[51,0,51,8],[52,0,56,0],[52,1,52,8],[53,1,53,2],[53,3,53,8],[54,1,56,1],[54,2,56,2],[54,3,56,3],[54,4,56,4],[54,5,56,5],[54,6,56,6],[54,7,56,7],[54,8,56,8]]}
["Please scroll down to see all three tables"]
["Grantee:  ",{"$f":"'Grant Info & Instructions'!B2","v":0}]
[]
["Facility Information"]
["Facility Name (optional):"]
["EPA Facility Identifier (optional):"]
["Facility Contact (optional):"]
["Facility NAICS Code (6 Digits):"]
["Facility City (optional):"]
["Facility State:"]
["EPA Region where the Facility is located:",{"$nulls":10},"Drop down list"]
["NEAs for the Facility addressed:",{"$nulls":10},"Drop down list"]
["Date P2 recommendations were provided to Facility:"]
["Date(s) of follow-up:"]
[]
[]
["P2 Actions and Outcomes"]
["Recommended P2 Actions","If Implemented:",{"$nulls":7},"If Not Implemented:"]
[null,"$",null,"Annual Reductions"]
[null,"One-time Cost to Implement ($)","Annual Savings from P2 Action ($)","Hazardous Material input (lbs)","Hazardous waste (lbs)","Air emissions (lbs)","Water pollution (lbs)","MTCO2e emissions (tons)","Water use (gal.)","Barrier to Implement","Plans to Implement within 5 years?     (pick Y/N)"]
{"$rows_empty":28}
["TOTAL",{"$f":"SUM(B21:B48)","v":{"v":0,"d":"$0"}},{"$f":"SUM(C21:C48)","v":{"v":0,"d":"$0"}},0,0,0,0,0,0]
[]
[]
["P2 Actions Implemented at a Business/Facility Prior to Technical Assistance (optional)"]
["P2 Actions Previously Implemented","If Available:"]
[null,"$",null,"Annual Reductions"]
[null,"One-time Cost to Implement ($)","Annual Savings from P2 Action ($)","Hazardous Materials used (lbs)","Hazardous waste (lbs)","Air emissions (lbs)","Water pollution (lbs)","MTCO2e emissions (tons)","Water use (gal.)"]

{"sheet":"Facility 29","index":30,"n_rows":55,"n_cols":12,"rows_kept":55,"merged":[[1,1,1,10],[4,1,4,10],[5,1,5,10],[6,1,6,10],[7,1,7,10],[8,1,8,10],[9,1,9,10],[10,1,10,10],[11,1,11,10],[12,1,12,10],[13,1,13,10],[17,0,19,0],[17,1,17,8],[17,9,17,10],[18,1,18,2],[18,3,18,8],[18,9,18,10],[51,0,51,8],[52,0,56,0],[52,1,52,8],[53,1,53,2],[53,3,53,8],[54,1,56,1],[54,2,56,2],[54,3,56,3],[54,4,56,4],[54,5,56,5],[54,6,56,6],[54,7,56,7],[54,8,56,8]]}
["Please scroll down to see all three tables"]
["Grantee:  ",{"$f":"'Grant Info & Instructions'!B2","v":0}]
[]
["Facility Information"]
["Facility Name (optional):"]
["EPA Facility Identifier (optional):"]
["Facility Contact (optional):"]
["Facility NAICS Code (6 Digits):"]
["Facility City (optional):"]
["Facility State:"]
["EPA Region where the Facility is located:",{"$nulls":10},"Drop down list"]
["NEAs for the Facility addressed:",{"$nulls":10},"Drop down list"]
["Date P2 recommendations were provided to Facility:"]
["Date(s) of follow-up:"]
[]
[]
["P2 Actions and Outcomes"]
["Recommended P2 Actions","If Implemented:",{"$nulls":7},"If Not Implemented:"]
[null,"$",null,"Annual Reductions"]
[null,"One-time Cost to Implement ($)","Annual Savings from P2 Action ($)","Hazardous Material input (lbs)","Hazardous waste (lbs)","Air emissions (lbs)","Water pollution (lbs)","MTCO2e emissions (tons)","Water use (gal.)","Barrier to Implement","Plans to Implement within 5 years?     (pick Y/N)"]
{"$rows_empty":28}
["TOTAL",{"$f":"SUM(B21:B48)","v":{"v":0,"d":"$0"}},{"$f":"SUM(C21:C48)","v":{"v":0,"d":"$0"}},0,0,0,0,0,0]
[]
[]
["P2 Actions Implemented at a Business/Facility Prior to Technical Assistance (optional)"]
["P2 Actions Previously Implemented","If Available:"]
[null,"$",null,"Annual Reductions"]
[null,"One-time Cost to Implement ($)","Annual Savings from P2 Action ($)","Hazardous Materials used (lbs)","Hazardous waste (lbs)","Air emissions (lbs)","Water pollution (lbs)","MTCO2e emissions (tons)","Water use (gal.)"]

{"sheet":"Facility 30","index":31,"n_rows":55,"n_cols":12,"rows_kept":55,"merged":[[1,1,1,10],[4,1,4,10],[5,1,5,10],[6,1,6,10],[7,1,7,10],[8,1,8,10],[9,1,9,10],[10,1,10,10],[11,1,11,10],[12,1,12,10],[13,1,13,10],[17,0,19,0],[17,1,17,8],[17,9,17,10],[18,1,18,2],[18,3,18,8],[18,9,18,10],[51,0,51,8],[52,0,56,0],[52,1,52,8],[53,1,53,2],[53,3,53,8],[54,1,56,1],[54,2,56,2],[54,3,56,3],[54,4,56,4],[54,5,56,5],[54,6,56,6],[54,7,56,7],[54,8,56,8]]}
["Please scroll down to see all three tables"]
["Grantee:  ",{"$f":"'Grant Info & Instructions'!B2","v":0}]
[]
["Facility Information"]
["Facility Name (optional):"]
["EPA Facility Identifier (optional):"]
["Facility Contact (optional):"]
["Facility NAICS Code (6 Digits):"]
["Facility City (optional):"]
["Facility State:"]
["EPA Region where the Facility is located:",{"$nulls":10},"Drop down list"]
["NEAs for the Facility addressed:",{"$nulls":10},"Drop down list"]
["Date P2 recommendations were provided to Facility:"]
["Date(s) of follow-up:"]
[]
[]
["P2 Actions and Outcomes"]
["Recommended P2 Actions","If Implemented:",{"$nulls":7},"If Not Implemented:"]
[null,"$",null,"Annual Reductions"]
[null,"One-time Cost to Implement ($)","Annual Savings from P2 Action ($)","Hazardous Material input (lbs)","Hazardous waste (lbs)","Air emissions (lbs)","Water pollution (lbs)","MTCO2e emissions (tons)","Water use (gal.)","Barrier to Implement","Plans to Implement within 5 years?     (pick Y/N)"]
{"$rows_empty":28}
["TOTAL",{"$f":"SUM(B21:B48)","v":{"v":0,"d":"$0"}},{"$f":"SUM(C21:C48)","v":{"v":0,"d":"$0"}},0,0,0,0,0,0]
[]
[]
["P2 Actions Implemented at a Business/Facility Prior to Technical Assistance (optional)"]
["P2 Actions Previously Implemented","If Available:"]
[null,"$",null,"Annual Reductions"]
[null,"One-time Cost to Implement ($)","Annual Savings from P2 Action ($)","Hazardous Materials used (lbs)","Hazardous waste (lbs)","Air emissions (lbs)","Water pollution (lbs)","MTCO2e emissions (tons)","Water use (gal.)"]